[Event "Titled Tuesday Blitz December 13 Early 2022"]
[White "Kleiman, Jake"]
[Black "Wagner, Dennis"]
[WhiteFideId "2020041"]
[BlackFideId "24650684"]
[WhiteElo "2580"]
[BlackElo "2470"]
[Result "1-0"]
[Round "09"]
[TimeControl "180+1"]
[Date "2022.12.14"]
[WhiteClock "0:00:58"]
[BlackClock "0:00:01"]

1. e4 {[%clk 0:03:00]}  c5 {[%clk 0:02:59]} 2. c3 {[%clk 0:03:00]}  d5 {[%clk 0:02:53]} 3. exd5 {[%clk 0:03:01]}  Qxd5 {[%clk 0:02:54]} 4. d4 {[%clk 0:03:01]}  Nc6 {[%clk 0:02:46]} 5. Nf3 {[%clk 0:03:02]}  Bg4 {[%clk 0:02:45]} 6. dxc5 {[%clk 0:03:02]}  Qxd1+ {[%clk 0:02:45]} 7. Kxd1 {[%clk 0:03:03]}  e5 {[%clk 0:02:40]} 8. Be3 {[%clk 0:03:01]}  O-O-O+ {[%clk 0:02:31]} 9. Nd2 {[%clk 0:03:00]}  Nge7 {[%clk 0:02:28]} 10. Kc1 {[%clk 0:02:51]}  Nd5 {[%clk 0:02:24]} 11. Nb3 {[%clk 0:02:46]}  Nxe3 {[%clk 0:02:16]} 12. fxe3 {[%clk 0:02:47]}  Be7 {[%clk 0:02:01]} 13. e4 {[%clk 0:02:38]}  Be6 {[%clk 0:01:43]} 14. Kc2 {[%clk 0:02:37]}  f5 {[%clk 0:01:20]} 15. Bd3 {[%clk 0:02:29]}  f4 {[%clk 0:00:57]} 16. Bb5 {[%clk 0:02:24]}  Bf6 {[%clk 0:00:51]} 17. h4 {[%clk 0:02:12]}  a6 {[%clk 0:00:42]} 18. Be2 {[%clk 0:02:07]}  Be7 {[%clk 0:00:33]} 19. Ng5 {[%clk 0:01:52]}  Bg8 {[%clk 0:00:15]} 20. Bg4+ {[%clk 0:01:46]}  Kc7 {[%clk 0:00:15]} 21. Ne6+ {[%clk 0:01:42]}  Bxe6 {[%clk 0:00:15]} 22. Bxe6 {[%clk 0:01:43]}  Rhf8 {[%clk 0:00:14]} 23. Rh3 {[%clk 0:01:40]}  Rf6 {[%clk 0:00:14]} 24. Bd5 {[%clk 0:01:40]}  Rg6 {[%clk 0:00:14]} 25. Rg1 {[%clk 0:01:38]}  Rg4 {[%clk 0:00:10]} 26. h5 {[%clk 0:01:38]}  Rf8 {[%clk 0:00:05]} 27. Be6 {[%clk 0:01:28]}  Rg5 {[%clk 0:00:05]} 28. Bf5 {[%clk 0:01:22]}  g6 {[%clk 0:00:04]} 29. hxg6 {[%clk 0:01:23]}  hxg6 {[%clk 0:00:05]} 30. Be6 {[%clk 0:01:23]}  Rf6 {[%clk 0:00:05]} 31. Bd5 {[%clk 0:01:22]}  Rh5 {[%clk 0:00:04]} 32. Rgh1 {[%clk 0:01:17]}  Rhf5 {[%clk 0:00:04]} 33. exf5 {[%clk 0:01:16]}  gxf5 {[%clk 0:00:05]} 34. Rh7 {[%clk 0:01:16]}  Rg6 {[%clk 0:00:04]} 35. Bxc6 {[%clk 0:01:16]}  Kxc6 {[%clk 0:00:05]} 36. Rxe7 {[%clk 0:01:16]}  Rxg2+ {[%clk 0:00:06]} 37. Nd2 {[%clk 0:01:17]}  e4 {[%clk 0:00:07]} 38. Rh6+ {[%clk 0:01:15]}  Kxc5 {[%clk 0:00:07]} 39. Rc7+ {[%clk 0:01:15]}  Kd5 {[%clk 0:00:07]} 40. Kd1 {[%clk 0:01:08]}  f3 {[%clk 0:00:07]} 41. Rf7 {[%clk 0:01:02]}  Rg1+ {[%clk 0:00:06]} 42. Kc2 {[%clk 0:01:01]}  Ke5 {[%clk 0:00:06]} 43. Rh5 {[%clk 0:01:01]}  Rg2 {[%clk 0:00:04]} 44. Rfxf5+ {[%clk 0:00:59]}  Ke6 {[%clk 0:00:05]} 45. Re5+ {[%clk 0:00:59]}  Kf6 {[%clk 0:00:05]} 46. Rxe4 {[%clk 0:01:00]}  f2 {[%clk 0:00:05]} 47. Rf4+ {[%clk 0:01:00]}  Kg6 {[%clk 0:00:05]} 48. Rhf5 {[%clk 0:01:00]}  b5 {[%clk 0:00:05]} 49. Rxf2 {[%clk 0:01:00]}  Rg1 {[%clk 0:00:05]} 50. Ne4 {[%clk 0:01:00]}  b4 {[%clk 0:00:04]} 51. cxb4 {[%clk 0:01:00]}  a5 {[%clk 0:00:05]} 52. bxa5 {[%clk 0:01:00]}  Rh1 {[%clk 0:00:06]} 53. Rg5+ {[%clk 0:01:00]}  Kh7 {[%clk 0:00:05]} 54. a6 {[%clk 0:00:59]}  Rh6 {[%clk 0:00:03]} 55. Rf6 {[%clk 0:00:59]}  Rxf6 {[%clk 0:00:01]} 56. Nxf6+ {[%clk 0:00:59]}  Kh8 {[%clk 0:00:01]} 57. Rg8# {[%clk 0:00:58]} 1-0


[Site "https://www.chess.com"]

[Event "Titled Tuesday Blitz December 13 Early 2022"]
[White "Kostiukov, Alexandr"]
[Black "Miszler, Levente"]
[WhiteFideId "14108100"]
[BlackFideId "763276"]
[WhiteElo "2202"]
[BlackElo "2176"]
[Result "1-0"]
[Round "09"]
[TimeControl "180+1"]
[Date "2022.12.14"]
[WhiteClock "0:01:56"]
[BlackClock "0:01:37"]

1. g3 {[%clk 0:03:00]}  c6 {[%clk 0:02:55]} 2. Bg2 {[%clk 0:03:00]}  d5 {[%clk 0:02:56]} 3. d3 {[%clk 0:03:00]}  g6 {[%clk 0:02:57]} 4. e4 {[%clk 0:03:00]}  Bg7 {[%clk 0:02:57]} 5. Qe2 {[%clk 0:03:00]}  e5 {[%clk 0:02:54]} 6. Nf3 {[%clk 0:02:58]}  Qe7 {[%clk 0:02:47]} 7. O-O {[%clk 0:02:58]}  Nd7 {[%clk 0:02:46]} 8. exd5 {[%clk 0:02:57]}  cxd5 {[%clk 0:02:46]} 9. Nc3 {[%clk 0:02:57]}  Ngf6 {[%clk 0:02:34]} 10. Re1 {[%clk 0:02:53]}  O-O {[%clk 0:02:25]} 11. Nxe5 {[%clk 0:02:51]}  Nxe5 {[%clk 0:02:20]} 12. Qxe5 {[%clk 0:02:51]}  Qxe5 {[%clk 0:02:12]} 13. Rxe5 {[%clk 0:02:50]}  Ne4 {[%clk 0:02:12]} 14. Rxd5 {[%clk 0:02:44]}  Nxc3 {[%clk 0:02:06]} 15. bxc3 {[%clk 0:02:43]}  Bxc3 {[%clk 0:02:07]} 16. Rb1 {[%clk 0:02:43]}  Be6 {[%clk 0:02:08]} 17. Rc5 {[%clk 0:02:23]}  Bxa2 {[%clk 0:02:05]} 18. Rxb7 {[%clk 0:02:21]}  Bd4 {[%clk 0:02:03]} 19. Rcc7 {[%clk 0:02:19]}  Rab8 {[%clk 0:02:02]} 20. Bh6 {[%clk 0:02:15]}  Rfe8 {[%clk 0:01:55]} 21. Be4 {[%clk 0:02:09]}  f5 {[%clk 0:01:48]} 22. Bc6 {[%clk 0:01:58]}  Re2 {[%clk 0:01:37]} 23. Rxb8+ {[%clk 0:01:56]} 1-0


[Site "https://www.chess.com"]

[Event "Titled Tuesday Blitz December 13 Early 2022"]
[White "Kriti Mayur Patel"]
[Black "Jakubowska, Anna"]
[WhiteFideId "35061780"]
[BlackFideId "1121952"]
[WhiteElo "1306"]
[BlackElo "2001"]
[Result "1-0"]
[Round "09"]
[TimeControl "180+1"]
[Date "2022.12.14"]
[WhiteClock "0:00:27"]
[BlackClock "0:01:06"]

1. e4 {[%clk 0:03:00]}  c5 {[%clk 0:02:59]} 2. d4 {[%clk 0:02:59]}  cxd4 {[%clk 0:02:59]} 3. c3 {[%clk 0:02:58]}  dxc3 {[%clk 0:02:59]} 4. Nxc3 {[%clk 0:02:56]}  d6 {[%clk 0:02:59]} 5. Nf3 {[%clk 0:02:56]}  Nc6 {[%clk 0:02:59]} 6. Bc4 {[%clk 0:02:57]}  Nf6 {[%clk 0:02:58]} 7. e5 {[%clk 0:02:56]}  dxe5 {[%clk 0:02:56]} 8. Qxd8+ {[%clk 0:02:55]}  Nxd8 {[%clk 0:02:56]} 9. Nb5 {[%clk 0:02:49]}  Rb8 {[%clk 0:02:42]} 10. Nxe5 {[%clk 0:02:46]}  Ne6 {[%clk 0:02:26]} 11. Be3 {[%clk 0:02:17]}  a6 {[%clk 0:02:23]} 12. Ba7 {[%clk 0:01:50]}  axb5 {[%clk 0:01:48]} 13. Bxb5+ {[%clk 0:01:16]}  Bd7 {[%clk 0:01:46]} 14. Nxd7 {[%clk 0:01:14]}  Nxd7 {[%clk 0:01:46]} 15. Bxb8 {[%clk 0:01:10]}  Nd4 {[%clk 0:01:46]} 16. Bxd7+ {[%clk 0:01:07]}  Kxd7 {[%clk 0:01:47]} 17. Rd1 {[%clk 0:01:07]}  Kc8 {[%clk 0:01:42]} 18. Rxd4 {[%clk 0:00:59]}  Kxb8 {[%clk 0:01:42]} 19. Rd8+ {[%clk 0:00:59]}  Kc7 {[%clk 0:01:42]} 20. Ra8 {[%clk 0:00:59]}  g6 {[%clk 0:01:42]} 21. O-O {[%clk 0:00:59]}  Bg7 {[%clk 0:01:41]} 22. Rc1+ {[%clk 0:00:57]}  Kb6 {[%clk 0:01:35]} 23. Rxh8 {[%clk 0:00:55]}  Bxh8 {[%clk 0:01:36]} 24. b3 {[%clk 0:00:55]}  Be5 {[%clk 0:01:27]} 25. Rc8 {[%clk 0:00:55]}  Kb5 {[%clk 0:01:24]} 26. Rf8 {[%clk 0:00:52]}  f6 {[%clk 0:01:23]} 27. Rf7 {[%clk 0:00:52]}  Bd6 {[%clk 0:01:22]} 28. Rxh7 {[%clk 0:00:51]}  Kb4 {[%clk 0:01:22]} 29. Rg7 {[%clk 0:00:51]}  g5 {[%clk 0:01:22]} 30. Rg8 {[%clk 0:00:49]}  Kc3 {[%clk 0:01:17]} 31. g3 {[%clk 0:00:49]}  Kb2 {[%clk 0:01:17]} 32. Ra8 {[%clk 0:00:48]}  Ba3 {[%clk 0:01:15]} 33. h4 {[%clk 0:00:48]}  gxh4 {[%clk 0:01:13]} 34. gxh4 {[%clk 0:00:48]}  Kxa2 {[%clk 0:01:11]} 35. Rxa3+ {[%clk 0:00:46]}  Kxa3 {[%clk 0:01:12]} 36. h5 {[%clk 0:00:47]}  Kxb3 {[%clk 0:01:13]} 37. h6 {[%clk 0:00:47]}  b5 {[%clk 0:01:14]} 38. h7 {[%clk 0:00:48]}  b4 {[%clk 0:01:15]} 39. h8=Q {[%clk 0:00:48]}  Ka2 {[%clk 0:01:13]} 40. Qa8+ {[%clk 0:00:45]}  Kb2 {[%clk 0:01:13]} 41. Kf1 {[%clk 0:00:45]}  b3 {[%clk 0:01:13]} 42. Ke2 {[%clk 0:00:45]}  Kc1 {[%clk 0:01:12]} 43. Qc6+ {[%clk 0:00:44]}  Kb1 {[%clk 0:01:12]} 44. Qe4+ {[%clk 0:00:41]}  Ka1 {[%clk 0:01:12]} 45. Qa4+ {[%clk 0:00:41]}  Kb2 {[%clk 0:01:11]} 46. Kd2 {[%clk 0:00:41]}  e5 {[%clk 0:01:10]} 47. Qb4 {[%clk 0:00:33]}  f5 {[%clk 0:01:08]} 48. Qc3+ {[%clk 0:00:30]}  Ka2 {[%clk 0:01:08]} 49. Kc1 {[%clk 0:00:28]}  Ka3 {[%clk 0:01:07]} 50. Qxe5 {[%clk 0:00:27]}  Ka4 {[%clk 0:01:06]} 51. Qxf5 {[%clk 0:00:27]} 1-0


[Site "https://www.chess.com"]

[Event "Titled Tuesday Blitz December 13 Early 2022"]
[White "Lamaze, Simon"]
[Black "Kamsky, Gata"]
[WhiteFideId "36069264"]
[BlackFideId "2000024"]
[WhiteElo "2272"]
[BlackElo "2666"]
[Result "0-1"]
[Round "09"]
[TimeControl "180+1"]
[Date "2022.12.13"]
[WhiteClock "0:00:19"]
[BlackClock "0:01:24"]

1. e4 {[%clk 0:02:17]}  g6 {[%clk 0:02:57]} 2. d4 {[%clk 0:02:15]}  Bg7 {[%clk 0:02:57]} 3. c4 {[%clk 0:02:16]}  d6 {[%clk 0:02:55]} 4. Nc3 {[%clk 0:02:16]}  Nf6 {[%clk 0:02:54]} 5. Be2 {[%clk 0:02:16]}  e5 {[%clk 0:02:54]} 6. d5 {[%clk 0:02:12]}  Na6 {[%clk 0:02:50]} 7. Be3 {[%clk 0:02:11]}  Nc5 {[%clk 0:02:50]} 8. Qc2 {[%clk 0:02:10]}  a5 {[%clk 0:02:49]} 9. h3 {[%clk 0:02:07]}  O-O {[%clk 0:02:42]} 10. g4 {[%clk 0:02:07]}  c6 {[%clk 0:02:40]} 11. Nf3 {[%clk 0:02:06]}  cxd5 {[%clk 0:02:38]} 12. cxd5 {[%clk 0:02:07]}  Bd7 {[%clk 0:02:38]} 13. Nd2 {[%clk 0:02:06]}  a4 {[%clk 0:02:35]} 14. Rc1 {[%clk 0:01:51]}  Rc8 {[%clk 0:02:33]} 15. g5 {[%clk 0:01:31]}  Nh5 {[%clk 0:02:31]} 16. Bxh5 {[%clk 0:01:20]}  gxh5 {[%clk 0:02:31]} 17. h4 {[%clk 0:01:21]}  f5 {[%clk 0:02:29]} 18. f3 {[%clk 0:01:13]}  b5 {[%clk 0:02:29]} 19. a3 {[%clk 0:01:12]}  fxe4 {[%clk 0:02:24]} 20. fxe4 {[%clk 0:01:08]}  Bg4 {[%clk 0:02:18]} 21. Rf1 {[%clk 0:00:56]}  Qd7 {[%clk 0:02:17]} 22. Bxc5 {[%clk 0:00:46]}  dxc5 {[%clk 0:02:10]} 23. Qd3 {[%clk 0:00:44]}  c4 {[%clk 0:02:08]} 24. Qe3 {[%clk 0:00:42]}  Rxf1+ {[%clk 0:02:01]} 25. Nxf1 {[%clk 0:00:41]}  Bf8 {[%clk 0:02:01]} 26. Qg3 {[%clk 0:00:39]}  Bc5 {[%clk 0:01:49]} 27. Ne3 {[%clk 0:00:38]}  Rf8 {[%clk 0:01:44]} 28. Rc2 {[%clk 0:00:24]}  Rf3 {[%clk 0:01:42]} 29. Qxf3 {[%clk 0:00:23]}  Bxf3 {[%clk 0:01:41]} 30. Nf5 {[%clk 0:00:24]}  Bg4 {[%clk 0:01:34]} 31. Nh6+ {[%clk 0:00:24]}  Kg7 {[%clk 0:01:33]} 32. Ne2 {[%clk 0:00:20]}  Bxe2 {[%clk 0:01:29]} 33. Rxe2 {[%clk 0:00:20]}  Qh3 {[%clk 0:01:28]} 34. Nf5+ {[%clk 0:00:19]}  Kf7 {[%clk 0:01:27]} 35. d6 {[%clk 0:00:19]}  Ke6 {[%clk 0:01:24]} 36. Rd2 {[%clk 0:00:19]}  Qh1+ {[%clk 0:01:24]} 0-1


[Site "https://www.chess.com"]

[Event "Titled Tuesday Blitz December 13 Early 2022"]
[White "Lawson, Eric"]
[Black "Tsatsalashvili, Keti"]
[WhiteFideId "2604116"]
[BlackFideId "13603434"]
[WhiteElo "2523"]
[BlackElo "2220"]
[Result "0-1"]
[Round "09"]
[TimeControl "180+1"]
[Date "2022.12.14"]
[WhiteClock "0:00:08"]
[BlackClock "0:00:03"]

1. d4 {[%clk 0:03:00]}  Nf6 {[%clk 0:02:59]} 2. Bg5 {[%clk 0:03:00]}  c5 {[%clk 0:02:58]} 3. d5 {[%clk 0:03:01]}  Qb6 {[%clk 0:02:56]} 4. Nc3 {[%clk 0:03:01]}  Qxb2 {[%clk 0:02:47]} 5. Bd2 {[%clk 0:03:01]}  Qb6 {[%clk 0:02:45]} 6. e4 {[%clk 0:03:01]}  d6 {[%clk 0:02:45]} 7. f4 {[%clk 0:03:01]}  Nbd7 {[%clk 0:02:41]} 8. Rb1 {[%clk 0:03:01]}  Qc7 {[%clk 0:02:40]} 9. Nf3 {[%clk 0:03:01]}  a6 {[%clk 0:02:40]} 10. a4 {[%clk 0:02:58]}  b6 {[%clk 0:02:39]} 11. Bc4 {[%clk 0:02:56]}  g6 {[%clk 0:02:39]} 12. e5 {[%clk 0:02:40]}  dxe5 {[%clk 0:02:39]} 13. fxe5 {[%clk 0:02:37]}  Nxe5 {[%clk 0:02:38]} 14. Bf4 {[%clk 0:02:38]}  Nxf3+ {[%clk 0:02:25]} 15. Qxf3 {[%clk 0:02:38]}  Qd7 {[%clk 0:02:16]} 16. Nb5 {[%clk 0:02:26]}  Kd8 {[%clk 0:01:47]} 17. Nc3 {[%clk 0:01:39]}  Qg4 {[%clk 0:01:22]} 18. Qf2 {[%clk 0:01:35]}  Bg7 {[%clk 0:01:13]} 19. h3 {[%clk 0:01:24]}  Qf5 {[%clk 0:01:05]} 20. g4 {[%clk 0:01:24]}  Qd7 {[%clk 0:01:05]} 21. Rxb6 {[%clk 0:01:23]}  Nxg4 {[%clk 0:01:02]} 22. Qg3 {[%clk 0:01:11]}  Nf6 {[%clk 0:00:55]} 23. Qe3 {[%clk 0:00:45]}  Nh5 {[%clk 0:00:38]} 24. Be5 {[%clk 0:00:45]}  Bxe5 {[%clk 0:00:30]} 25. Qxe5 {[%clk 0:00:46]}  f6 {[%clk 0:00:31]} 26. Qe3 {[%clk 0:00:45]}  Qc7 {[%clk 0:00:31]} 27. Rc6 {[%clk 0:00:44]}  Qg3+ {[%clk 0:00:30]} 28. Qxg3 {[%clk 0:00:37]}  Nxg3 {[%clk 0:00:31]} 29. Rg1 {[%clk 0:00:36]}  Nf5 {[%clk 0:00:28]} 30. Kd2 {[%clk 0:00:25]}  Nd4 {[%clk 0:00:26]} 31. Rxc5 {[%clk 0:00:25]}  Nf3+ {[%clk 0:00:26]} 32. Ke3 {[%clk 0:00:25]}  Nxg1 {[%clk 0:00:26]} 33. d6 {[%clk 0:00:23]}  exd6 {[%clk 0:00:25]} 34. Rc6 {[%clk 0:00:23]}  Nxh3 {[%clk 0:00:22]} 35. Nd5 {[%clk 0:00:21]}  Ke8 {[%clk 0:00:16]} 36. Nc7+ {[%clk 0:00:20]}  Ke7 {[%clk 0:00:15]} 37. Nxa8 {[%clk 0:00:21]}  Ng5 {[%clk 0:00:15]} 38. Rc7+ {[%clk 0:00:20]}  Kd8 {[%clk 0:00:14]} 39. Ra7 {[%clk 0:00:14]}  h5 {[%clk 0:00:14]} 40. Nb6 {[%clk 0:00:14]}  h4 {[%clk 0:00:15]} 41. Nxc8 {[%clk 0:00:14]}  h3 {[%clk 0:00:14]} 42. Nxd6 {[%clk 0:00:14]}  Rh4 {[%clk 0:00:11]} 43. Bxa6 {[%clk 0:00:08]}  h2 {[%clk 0:00:08]} 44. Bb5 {[%clk 0:00:08]}  Re4+ {[%clk 0:00:03]} 0-1


[Site "https://www.chess.com"]

[Event "Titled Tuesday Blitz December 13 Early 2022"]
[White "Lazavik, Denis"]
[Black "Putnam, Liam"]
[WhiteFideId "13515110"]
[BlackFideId "30938279"]
[WhiteElo "2484"]
[BlackElo "2082"]
[Result "1-0"]
[Round "09"]
[TimeControl "180+1"]
[Date "2022.12.13"]
[WhiteClock "0:01:33"]
[BlackClock "0:00:07"]

1. d4 {[%clk 0:03:00]}  Nf6 {[%clk 0:02:59]} 2. c4 {[%clk 0:03:01]}  e6 {[%clk 0:02:58]} 3. Nf3 {[%clk 0:03:02]}  b6 {[%clk 0:02:57]} 4. g3 {[%clk 0:03:02]}  Ba6 {[%clk 0:02:58]} 5. b3 {[%clk 0:03:02]}  Bb7 {[%clk 0:02:57]} 6. Bg2 {[%clk 0:03:02]}  Bb4+ {[%clk 0:02:55]} 7. Bd2 {[%clk 0:03:02]}  Be7 {[%clk 0:02:55]} 8. O-O {[%clk 0:03:02]}  O-O {[%clk 0:02:53]} 9. Nc3 {[%clk 0:02:51]}  d5 {[%clk 0:02:52]} 10. cxd5 {[%clk 0:02:50]}  exd5 {[%clk 0:02:53]} 11. Qb1 {[%clk 0:02:50]}  Nbd7 {[%clk 0:02:37]} 12. b4 {[%clk 0:02:50]}  c6 {[%clk 0:02:30]} 13. a4 {[%clk 0:02:50]}  a5 {[%clk 0:02:28]} 14. b5 {[%clk 0:02:30]}  c5 {[%clk 0:02:28]} 15. Rd1 {[%clk 0:02:30]}  Re8 {[%clk 0:02:25]} 16. Bf4 {[%clk 0:02:29]}  Nf8 {[%clk 0:02:08]} 17. dxc5 {[%clk 0:02:22]}  Bxc5 {[%clk 0:02:09]} 18. e3 {[%clk 0:02:22]}  Ne6 {[%clk 0:02:05]} 19. Be5 {[%clk 0:02:22]}  Ng4 {[%clk 0:01:59]} 20. Qf5 {[%clk 0:02:20]}  Nh6 {[%clk 0:01:23]} 21. Qh5 {[%clk 0:02:18]}  Bf8 {[%clk 0:01:07]} 22. Nh4 {[%clk 0:02:09]}  g6 {[%clk 0:01:03]} 23. Qe2 {[%clk 0:02:09]}  Nc5 {[%clk 0:00:42]} 24. Bxd5 {[%clk 0:02:02]}  Bxd5 {[%clk 0:00:42]} 25. Rxd5 {[%clk 0:02:02]}  Qc8 {[%clk 0:00:41]} 26. Rad1 {[%clk 0:01:50]}  Rxe5 {[%clk 0:00:28]} 27. Rxe5 {[%clk 0:01:49]}  Bg7 {[%clk 0:00:29]} 28. Nd5 {[%clk 0:01:47]}  Qh3 {[%clk 0:00:22]} 29. Nf4 {[%clk 0:01:40]}  Qc8 {[%clk 0:00:20]} 30. Red5 {[%clk 0:01:40]}  Qc7 {[%clk 0:00:19]} 31. Nf3 {[%clk 0:01:39]}  Ng4 {[%clk 0:00:17]} 32. Qc4 {[%clk 0:01:37]}  Re8 {[%clk 0:00:15]} 33. Rd7 {[%clk 0:01:35]}  Qxd7 {[%clk 0:00:15]} 34. Rxd7 {[%clk 0:01:35]}  Nxd7 {[%clk 0:00:16]} 35. Nd5 {[%clk 0:01:33]}  Nge5 {[%clk 0:00:10]} 36. Nxe5 {[%clk 0:01:34]}  Bxe5 {[%clk 0:00:10]} 37. Qc6 {[%clk 0:01:34]}  Rd8 {[%clk 0:00:08]} 38. Nxb6 {[%clk 0:01:34]}  Nb8 {[%clk 0:00:07]} 39. Qb7 {[%clk 0:01:33]} 1-0


[Site "https://www.chess.com"]

[Event "Titled Tuesday Blitz December 13 Early 2022"]
[White "Lewtak, Damian"]
[Black "Morefield, Jason"]
[WhiteFideId "1141724"]
[BlackFideId "30920825"]
[WhiteElo "2629"]
[BlackElo "2773"]
[Result "1-0"]
[Round "09"]
[TimeControl "180+1"]
[Date "2022.12.14"]
[WhiteClock "0:00:33"]
[BlackClock "0:00:03"]

1. e4 {[%clk 0:03:00]}  c5 {[%clk 0:02:59]} 2. Nf3 {[%clk 0:02:57]}  d6 {[%clk 0:02:59]} 3. Bb5+ {[%clk 0:02:56]}  Bd7 {[%clk 0:02:58]} 4. Bxd7+ {[%clk 0:02:56]}  Nxd7 {[%clk 0:02:59]} 5. O-O {[%clk 0:02:57]}  Ngf6 {[%clk 0:02:59]} 6. Qe2 {[%clk 0:02:57]}  e6 {[%clk 0:02:58]} 7. c3 {[%clk 0:02:57]}  Be7 {[%clk 0:02:58]} 8. d4 {[%clk 0:02:57]}  O-O {[%clk 0:02:59]} 9. Rd1 {[%clk 0:02:56]}  cxd4 {[%clk 0:02:58]} 10. cxd4 {[%clk 0:02:56]}  d5 {[%clk 0:02:59]} 11. e5 {[%clk 0:02:56]}  Ne4 {[%clk 0:02:59]} 12. Nbd2 {[%clk 0:02:57]}  Nxd2 {[%clk 0:02:59]} 13. Bxd2 {[%clk 0:02:57]}  Rc8 {[%clk 0:02:59]} 14. Bf4 {[%clk 0:02:50]}  Qa5 {[%clk 0:02:45]} 15. h4 {[%clk 0:02:37]}  Rc6 {[%clk 0:02:38]} 16. Qe3 {[%clk 0:02:25]}  Rfc8 {[%clk 0:02:25]} 17. h5 {[%clk 0:02:18]}  h6 {[%clk 0:02:24]} 18. Rd3 {[%clk 0:02:11]}  Qa6 {[%clk 0:02:13]} 19. Nh2 {[%clk 0:01:56]}  Rc2 {[%clk 0:01:47]} 20. Rad1 {[%clk 0:01:28]}  Bf8 {[%clk 0:01:08]} 21. Ng4 {[%clk 0:01:27]}  Rc1 {[%clk 0:00:54]} 22. Rxc1 {[%clk 0:01:14]}  Rxc1+ {[%clk 0:00:54]} 23. Kh2 {[%clk 0:01:15]}  Rc2 {[%clk 0:00:45]} 24. Rb3 {[%clk 0:01:10]}  b6 {[%clk 0:00:25]} 25. Bxh6 {[%clk 0:01:07]}  gxh6 {[%clk 0:00:25]} 26. Nxh6+ {[%clk 0:01:07]}  Kh7 {[%clk 0:00:23]} 27. Nxf7 {[%clk 0:01:03]}  Qe2 {[%clk 0:00:21]} 28. Qg5 {[%clk 0:00:39]}  Qe4 {[%clk 0:00:11]} 29. Rf3 {[%clk 0:00:38]}  Bg7 {[%clk 0:00:03]} 30. Nd6 {[%clk 0:00:34]}  Nf8 {[%clk 0:00:03]} 31. Nxe4 {[%clk 0:00:33]} 1-0


[Site "https://www.chess.com"]

[Event "Titled Tuesday Blitz December 13 Early 2022"]
[White "Madaminov, Mukhiddin"]
[Black "Gabdrakhmanov, Azat"]
[WhiteFideId "14210703"]
[BlackFideId "34189197"]
[WhiteElo "2799"]
[BlackElo "2647"]
[Result "0-1"]
[Round "09"]
[TimeControl "180+1"]
[Date "2022.12.14"]
[WhiteClock "0:00:05"]
[BlackClock "0:00:09"]

1. d4 {[%clk 0:02:48]}  Nf6 {[%clk 0:02:59]} 2. Nc3 {[%clk 0:02:48]}  d5 {[%clk 0:02:57]} 3. Bf4 {[%clk 0:02:49]}  g6 {[%clk 0:02:56]} 4. Qd2 {[%clk 0:02:48]}  Bg7 {[%clk 0:02:55]} 5. O-O-O {[%clk 0:02:49]}  O-O {[%clk 0:02:55]} 6. Bh6 {[%clk 0:02:49]}  Bxh6 {[%clk 0:02:46]} 7. Qxh6 {[%clk 0:02:47]}  c5 {[%clk 0:02:46]} 8. dxc5 {[%clk 0:02:41]}  Qa5 {[%clk 0:02:44]} 9. Nf3 {[%clk 0:02:34]}  Ng4 {[%clk 0:02:21]} 10. Qh4 {[%clk 0:02:32]}  Qxc5 {[%clk 0:02:17]} 11. e3 {[%clk 0:02:28]}  Rd8 {[%clk 0:01:50]} 12. Ne4 {[%clk 0:02:07]}  Qa5 {[%clk 0:01:23]} 13. Neg5 {[%clk 0:01:35]}  h6 {[%clk 0:01:10]} 14. Nxf7 {[%clk 0:01:05]}  Kxf7 {[%clk 0:01:09]} 15. h3 {[%clk 0:01:06]}  Nf6 {[%clk 0:00:52]} 16. Qxh6 {[%clk 0:01:05]}  Bf5 {[%clk 0:00:48]} 17. Bd3 {[%clk 0:00:52]}  Nc6 {[%clk 0:00:41]} 18. Ng5+ {[%clk 0:00:47]}  Ke8 {[%clk 0:00:40]} 19. a3 {[%clk 0:00:40]}  Kd7 {[%clk 0:00:35]} 20. g4 {[%clk 0:00:38]}  Rh8 {[%clk 0:00:31]} 21. Qg7 {[%clk 0:00:38]}  Rhg8 {[%clk 0:00:29]} 22. Qf7 {[%clk 0:00:37]}  Raf8 {[%clk 0:00:22]} 23. Bxf5+ {[%clk 0:00:37]}  gxf5 {[%clk 0:00:22]} 24. Qe6+ {[%clk 0:00:38]}  Kc7 {[%clk 0:00:17]} 25. Qxf5 {[%clk 0:00:38]}  Kb8 {[%clk 0:00:16]} 26. Ne6 {[%clk 0:00:37]}  Rc8 {[%clk 0:00:17]} 27. g5 {[%clk 0:00:34]}  Ne8 {[%clk 0:00:15]} 28. Rxd5 {[%clk 0:00:34]}  Qa6 {[%clk 0:00:15]} 29. Rhd1 {[%clk 0:00:33]}  Nd6 {[%clk 0:00:15]} 30. Qf4 {[%clk 0:00:32]}  Ka8 {[%clk 0:00:16]} 31. h4 {[%clk 0:00:31]}  Qe2 {[%clk 0:00:15]} 32. R5d2 {[%clk 0:00:30]}  Qh5 {[%clk 0:00:15]} 33. b3 {[%clk 0:00:28]}  a6 {[%clk 0:00:16]} 34. Kb2 {[%clk 0:00:28]}  Rh8 {[%clk 0:00:16]} 35. Rd5 {[%clk 0:00:28]}  Qxh4 {[%clk 0:00:15]} 36. Qf3 {[%clk 0:00:17]}  Qh3 {[%clk 0:00:11]} 37. Qe2 {[%clk 0:00:18]}  Qxe6 {[%clk 0:00:10]} 38. f3 {[%clk 0:00:13]}  Rhg8 {[%clk 0:00:10]} 39. e4 {[%clk 0:00:13]}  Ne5 {[%clk 0:00:10]} 40. Qe3 {[%clk 0:00:13]}  Nc6 {[%clk 0:00:10]} 41. R1d2 {[%clk 0:00:09]}  Nb5 {[%clk 0:00:10]} 42. f4 {[%clk 0:00:07]}  Nd6 {[%clk 0:00:11]} 43. e5 {[%clk 0:00:06]}  Nf5 {[%clk 0:00:11]} 44. Qe4 {[%clk 0:00:07]}  Ng3 {[%clk 0:00:11]} 45. Qf3 {[%clk 0:00:07]}  Nf5 {[%clk 0:00:10]} 46. c3 {[%clk 0:00:07]}  Rcf8 {[%clk 0:00:11]} 47. Qe4 {[%clk 0:00:07]}  Ng3 {[%clk 0:00:11]} 48. Qf3 {[%clk 0:00:07]}  Nf5 {[%clk 0:00:11]} 49. a4 {[%clk 0:00:07]}  Nh4 {[%clk 0:00:11]} 50. Qg3 {[%clk 0:00:07]}  Ng6 {[%clk 0:00:11]} 51. Rd7 {[%clk 0:00:04]}  Nxf4 {[%clk 0:00:10]} 52. Qe3 {[%clk 0:00:05]}  Nd5 {[%clk 0:00:09]} 53. R2xd5 {[%clk 0:00:04]}  Rd8 {[%clk 0:00:09]} 54. Rxd8+ {[%clk 0:00:03]}  Rxd8 {[%clk 0:00:08]} 55. Rxd8+ {[%clk 0:00:03]}  Nxd8 {[%clk 0:00:09]} 56. Qf4 {[%clk 0:00:03]}  Nf7 {[%clk 0:00:09]} 57. Qe3 {[%clk 0:00:03]}  Qxe5 {[%clk 0:00:07]} 58. Qf2 {[%clk 0:00:01]}  Nxg5 {[%clk 0:00:07]} 59. Qf8+ {[%clk 0:00:02]}  Ka7 {[%clk 0:00:08]} 60. Qf2+ {[%clk 0:00:03]}  Kb8 {[%clk 0:00:07]} 61. Qb6 {[%clk 0:00:03]}  Qd6 {[%clk 0:00:06]} 62. Qe3 {[%clk 0:00:02]}  Ne6 {[%clk 0:00:07]} 63. b4 {[%clk 0:00:03]}  Nd8 {[%clk 0:00:07]} 64. Kb3 {[%clk 0:00:03]}  e5 {[%clk 0:00:08]} 65. b5 {[%clk 0:00:03]}  Qe6+ {[%clk 0:00:09]} 66. c4 {[%clk 0:00:03]}  axb5 {[%clk 0:00:09]} 67. axb5 {[%clk 0:00:04]}  Nf7 {[%clk 0:00:10]} 68. Qc5 {[%clk 0:00:03]}  Nd6 {[%clk 0:00:09]} 69. b6 {[%clk 0:00:04]}  Qe7 {[%clk 0:00:07]} 70. Qd5 {[%clk 0:00:02]}  e4 {[%clk 0:00:07]} 71. c5 {[%clk 0:00:03]}  Qf7 {[%clk 0:00:05]} 72. Qxf7 {[%clk 0:00:01]}  Nxf7 {[%clk 0:00:06]} 73. Kc4 {[%clk 0:00:02]}  Ng5 {[%clk 0:00:06]} 74. Kd4 {[%clk 0:00:02]}  Kc8 {[%clk 0:00:07]} 75. Ke3 {[%clk 0:00:03]}  Kd7 {[%clk 0:00:07]} 76. Kf4 {[%clk 0:00:04]}  Kc6 {[%clk 0:00:08]} 77. Kxg5 {[%clk 0:00:04]}  e3 {[%clk 0:00:08]} 78. Kf4 {[%clk 0:00:05]}  e2 {[%clk 0:00:09]} 0-1


[Site "https://www.chess.com"]